bitfinex-derivatives/quotes_ETHF0:USTF0_20240913
["timestamp","ask_amount","ask_price","bid_price","bid_amount"]
[1726215630606,2.22740675,2349.2,2349.1,0.81577]
[1726215634509,2.65305675,2349.2,2349.1,0.81577]
[1726215634711,2.22740675,2349.2,2349.1,0.81577]
[1726215635112,2.65305675,2349.2,2349.1,0.81577]
[1726215635604,2.22740675,2349.2,2349.1,0.81577]
[1726215636709,2.65305675,2349.2,2349.1,0.81577]
[1726215638216,2.22740675,2349.2,2349.1,0.81577]
[1726215638408,3.61119844,2349.3,2349.2,0.42565]
[1726215639217,0.42565,2349.2,2349.1,0.81576]
[1726215641114,3.20990844,2349.2,2349.1,0.81576]
[1726215642307,0.42567,2349.1,2349.0,1.23528]
[1726215642510,3.21514492,2349.1,2349.0,1.23528]
[1726215644317,0.42567,2349.1,2349.0,1.23528]
[1726215649425,0.81567,2349.1,2349.0,1.23528]
[1726215651120,0.39,2349.1,2349.0,1.23528]
[1726215653423,0.81567,2349.1,2349.0,1.23528]
[1726215655523,0.39,2349.1,2349.0,1.23528]
[1726215657322,0.81567,2349.1,2349.0,1.23528]
[1726215660517,3.34111013,2349.2,2349.1,0.42567]
[1726215660718,3.89796181,2349.4,2349.1,0.42567]
[1726215660719,3.34111013,2349.4,2349.3,0.42563]
[1726215661025,1.53,2349.4,2349.3,0.42563]
[1726215661522,1.95561,2349.4,2349.3,0.42563]
[1726215661721,1.53,2349.4,2349.3,0.42563]
[1726215661923,1.53,2349.4,2349.3,1.23043]
[1726215662923,3.34111013,2349.6,2349.5,0.4256]
[1726215663225,3.89796181,2349.8,2349.5,0.4256]
[1726215663226,1.53,2349.8,2349.7,0.42556]
[1726215663431,4.32002035,2349.8,2349.7,4.68156]
[1726215663926,4.32002035,2349.8,2349.7,0.42556]
[1726215664131,4.32002035,2349.8,2349.7,1.23036]
[1726215664522,4.32002035,2349.8,2349.7,0.8048]
[1726215664523,4.74556035,2349.8,2349.7,0.8048]
[1726215664829,4.74556035,2349.8,2349.7,1.23036]
[1726215664830,1.95554,2349.8,2349.7,1.23036]
[1726215665026,1.95554,2349.8,2349.7,0.8048]
[1726215665331,1.95554,2349.8,2349.7,1.23036]
[1726215665332,1.53,2349.8,2349.7,1.23036]
[1726215665522,4.31804726,2349.8,2349.7,1.23036]
[1726215668432,1.53,2349.8,2349.7,1.23036]
[1726215668927,4.31804726,2349.8,2349.7,1.23036]
[1726215669236,1.95554,2349.8,2349.7,1.23036]
[1726215669427,4.18410106,2349.8,2349.7,1.23036]
[1726215669735,1.95554,2349.8,2349.7,1.23036]
[1726215670131,15.63790726,2349.8,2349.1,1.10821795]
[1726215670328,2.65437912,2349.4,2349.2,1.1544]
[1726215670633,4.18437912,2349.3,2349.2,1.58005]
[1726215670823,4.18461547,2349.3,2349.2,1.58005]
[1726215671023,4.18461547,2349.3,2349.2,1.1544]
[1726215671332,3.75898547,2349.3,2349.2,1.58005]
[1726215672238,4.18461547,2349.3,2349.2,1.58005]
[1726215672627,3.75898547,2349.3,2349.2,1.58005]
[1726215672829,4.18461547,2349.3,2349.2,1.58005]
[1726215673237,2.65461547,2349.3,2349.2,1.58005]
[1726215673429,3.75898547,2349.3,2349.2,1.58005]
[1726215673625,1.53,2349.3,2349.2,1.58005]
[1726215674030,1.95563,2349.3,2349.2,1.58005]
[1726215674231,4.18461502,2349.3,2349.2,1.58005]
[1726215674432,4.18458759,2349.3,2349.2,1.58005]
[1726215674839,1.95563,2349.3,2349.2,1.58005]
[1726215675037,4.7415664,2349.3,2349.2,1.58005]
[1726215676043,0.42566,2349.2,2349.1,0.42566]
[1726215676339,1.95566,2349.2,2349.1,0.42566]
[1726215677326,4.7415964,2349.2,2349.1,0.42566]
[1726215678435,1.95566,2349.2,2349.1,0.42566]
[1726215679032,4.7415964,2349.2,2349.1,0.42566]
[1726215679634,1.95566,2349.2,2349.1,0.42566]
[1726215681032,1.53,2349.2,2349.1,0.42566]
[1726215682543,1.95565,2349.2,2349.1,0.42566]
[1726215684338,4.18446032,2349.2,2349.1,0.42566]
[1726215685242,3.75881032,2349.2,2349.1,0.42566]
[1726215685640,3.75881032,2349.2,2349.1,0.79906]
[1726215687642,2.22881032,2349.3,2349.2,1.48978]
[1726215687844,1.67142287,2349.3,2349.2,5.32093]
[1726215688047,1.67142287,2349.3,2349.2,5.74658]
[1726215688440,3.20142287,2349.3,2349.2,4.68245]
[1726215688642,3.20143997,2349.3,2349.2,4.68245]
[1726215688837,3.20142788,2349.3,2349.2,4.68245]
[1726215689051,1.53,2349.3,2349.2,5.74658]
[1726215689251,3.20145696,2349.3,2349.2,5.74658]
[1726215689552,1.53,2349.3,2349.2,5.74658]
[1726215689851,3.20141256,2349.3,2349.2,5.74658]
[1726215690050,1.53,2349.3,2349.2,5.74658]
[1726215690252,3.20144083,2349.3,2349.2,5.74658]
[1726215690450,3.20146404,2349.3,2349.2,6.13928]
[1726215691347,1.67146404,2349.3,2349.2,6.13928]
[1726215691549,3.75881032,2349.5,2349.3,1.06409]
[1726215691745,3.75881032,2349.5,2349.4,1.20411]
[1726215693948,2.22881032,2349.5,2349.4,1.20411]
[1726215694153,2.22881032,2349.5,2349.4,2.26815]
[1726215694449,0.3868,2349.6,2349.5,0.4256]
[1726215694656,0.3868,2349.6,2349.5,0.8124]
[1726215694843,4.7027364,2349.6,2349.5,0.8124]
[1726215695044,1.9168,2349.6,2349.5,0.8124]
[1726215696447,4.7027364,2349.6,2349.5,0.8124]
[1726215697639,1.9168,2349.6,2349.5,0.8124]
[1726215698341,4.7027364,2349.6,2349.5,0.4256]
[1726215698854,1.9168,2349.6,2349.5,0.4256]
[1726215699247,4.7027364,2349.6,2349.5,0.4256]
[1726215699452,1.9168,2349.6,2349.5,0.4256]
[1726215699953,4.7027364,2349.6,2349.5,0.4256]
[1726215701449,5.1283164,2349.6,2349.5,0.4256]
[1726215702454,4.7027364,2349.6,2349.5,0.4256]
[1726215703451,5.1283164,2349.6,2349.5,0.4256]
[1726215704656,0.4256,2349.5,2349.2,0.3939]
[1726215704862,0.42562,2349.4,2349.3,0.42562]
[1726215705061,4.7415564,2349.4,2349.3,0.42562]
[1726215705360,4.3159364,2349.4,2349.3,0.42562]
[1726215706461,1.53,2349.4,2349.3,0.42562]
[1726215706761,4.3159364,2349.4,2349.3,0.42562]
[1726215708652,4.7415464,2349.4,2349.3,0.42562]
[1726215708853,4.3159364,2349.4,2349.3,0.42562]
[1726215711665,4.7415464,2349.4,2349.3,0.42562]
[1726215711861,4.3159364,2349.4,2349.3,0.42562]
[1726215713567,4.31867386,2349.4,2349.3,0.42562]
[1726215714372,1.53,2349.4,2349.3,0.42562]
[1726215714579,4.31901761,2349.4,2349.3,0.42562]
[1726215714765,1.53,2349.4,2349.3,0.42562]
[1726215715268,2.59405,2349.4,2349.1,0.80455]
[1726215715466,4.31950313,2349.2,2349.1,0.42565]
[1726215715662,4.74516313,2349.2,2349.1,0.42567]
[1726215715870,2.75046,2349.2,2349.1,0.42567]
[1726215716063,2.3248,2349.2,2349.1,0.42567]
[1726215716259,2.75046,2349.2,2349.0,0.42568]
[1726215716470,2.75046,2349.2,2348.8,3.63351]
[1726215716471,0.42568,2349.1,2348.8,3.63351]
[1726215716769,4.31994256,2348.9,2348.8,3.63351]
[1726215718268,1.53,2348.9,2348.8,3.63351]
[1726215720171,4.31994256,2348.9,2348.8,3.63351]
[1726215721170,4.31994256,2348.9,2348.8,3.2078]
[1726215722075,4.31994256,2348.9,2348.8,3.63352]
[1726215722573,4.31994256,2348.9,2348.8,0.42572]
[1726215724268,4.74564256,2348.9,2348.7,4.84183]
[1726215724478,2.78994256,2348.8,2348.7,1.63403]
[1726215725275,1.95572,2348.9,2348.8,0.42572]
[1726215726367,4.74218327,2348.9,2348.8,0.42572]
[1726215727177,4.74218327,2348.9,2348.7,1.2083]
[1726215727178,0.42572,2348.8,2348.7,1.63403]
[1726215727376,2.22913654,2348.8,2348.7,1.63404]
[1726215730383,2.65485654,2348.8,2348.7,1.63404]
[1726215730577,2.22913654,2348.8,2348.7,1.63404]
[1726215731269,2.65485654,2348.8,2348.7,1.63404]
[1726215732676,2.22913654,2348.8,2348.7,1.63404]
[1726215734070,2.65485654,2348.8,2348.7,1.63404]
[1726215734975,0.42572,2348.8,2348.7,1.63404]
[1726215736576,4.56665654,2348.9,2348.8,0.42572]
[1726215739583,4.56665654,2348.9,2348.7,1.2083]
[1726215739785,4.56665654,2348.9,2348.8,0.42572]
[1726215741275,2.22913654,2348.9,2348.8,0.42572]
[1726215741477,2.65482654,2349.0,2348.9,0.4257]
[1726215741685,4.18482654,2349.0,2348.9,0.4257]
[1726215741876,1.95569,2349.0,2348.9,0.4257]
[1726215743787,4.74215327,2349.0,2348.9,0.4257]
[1726215745284,4.74215327,2349.0,2348.8,0.42571]
[1726215745485,4.56033621,2348.9,2348.8,0.42571]
[1726215747186,2.3325,2348.9,2348.8,0.42571]
[1726215748185,2.3325,2348.9,2348.7,1.2083]
[1726215748393,2.3325,2348.9,2348.8,0.42572]
[1726215749892,2.3325,2348.9,2348.7,1.2083]
[1726215749893,0.42572,2348.8,2348.7,1.63403]
[1726215750094,2.2289436,2348.8,2348.7,1.63403]
[1726215751984,2.2289436,2348.8,2348.7,2.69839]
[1726215752185,2.2289436,2348.9,2348.8,0.42572]
[1726215752982,3.7589436,2348.9,2348.8,0.42572]
[1726215753387,1.05488038,2348.9,2348.8,12.21332]
[1726215753588,1.05488038,2348.9,2348.8,7.27764]
[1726215753789,1.11481811,2348.9,2348.8,7.27764]
[1726215754496,1.11481811,2348.9,2348.8,5.74764]
[1726215755293,2.2289436,2349.1,2349.0,0.42569]
[1726215755889,2.2289436,2349.1,2349.0,1.24719]
[1726215759198,4.31646327,2349.2,2349.1,0.42567]
[1726215760401,4.74211327,2349.2,2349.1,0.42567]
[1726215761303,1.95565,2349.2,2349.1,0.42567]
[1726215761601,4.74499178,2349.2,2349.1,0.42567]
[1726215762307,4.31934178,2349.2,2349.1,0.42567]
[1726215765193,4.74499178,2349.2,2349.1,0.42567]
[1726215767201,0.42569,2349.0,2348.9,0.42569]
[1726215767497,4.74464252,2349.0,2348.9,0.42569]
[1726215767902,5.53594252,2349.0,2348.9,0.42569]
[1726215768305,2.74699,2349.0,2348.9,0.42569]
[1726215770906,5.53594252,2349.0,2348.9,0.42569]
[1726215771499,2.3213,2349.0,2348.9,0.42569]
[1726215772305,2.74699,2349.0,2348.9,0.42569]
[1726215774911,0.4257,2348.9,2348.7,0.3888]
[1726215775204,0.4257,2348.9,2348.7,0.42573]
[1726215775205,4.31895252,2348.8,2348.7,0.42573]
[1726215776608,1.95572,2348.8,2348.7,0.42573]
[1726215776906,1.53,2348.8,2348.7,0.42573]
[1726215777508,4.74518915,2348.8,2348.6,0.42574]
[1726215777713,3.57206915,2348.7,2348.6,0.42574]
[1726215780511,0.7826,2348.7,2348.6,0.42574]
[1726215780899,3.57206915,2348.7,2348.6,0.42574]
[1726215781512,0.7826,2348.7,2348.6,0.42574]
[1726215781815,3.57206915,2348.7,2348.6,0.42574]
[1726215782015,0.7826,2348.7,2348.6,0.42574]
[1726215782812,2.7891868,2348.9,2348.7,1.06436]
[1726215783118,2.7891868,2348.9,2348.8,1.21372]
[1726215783306,1.95568,2349.1,2348.8,0.788]
[1726215783506,2.78886699,2349.0,2348.9,0.4257]
[1726215783708,2.78886699,2349.0,2348.9,0.8292]
[1726215784209,4.31886699,2349.1,2349.0,0.42569]
[1726215790321,4.74453699,2349.1,2349.0,0.42569]
[1726215791916,4.31886699,2349.1,2349.0,0.42569]
[1726215792118,4.74453699,2349.1,2349.0,0.42569]
[1726215793911,4.31886699,2349.1,2349.0,0.42569]
[1726215794519,4.74453699,2349.1,2349.0,0.42569]
[1726215795125,4.31886699,2349.1,2349.0,0.42569]
[1726215795320,4.74453699,2349.1,2349.0,0.42569]
[1726215795716,4.31886699,2349.1,2349.0,0.42569]
[1726215795928,4.74453699,2349.1,2349.0,0.42569]
[1726215796126,1.95567,2349.1,2349.0,0.42569]
[1726215796828,6.21247,2349.1,2349.0,0.42569]
[1726215799529,6.21248,2349.1,2349.0,0.42569]
[1726215800836,5.7868,2349.1,2349.0,0.42569]
[1726215802427,1.06429,2348.9,2348.4,4.5865]
[1726215802627,2.23204079,2348.5,2348.4,5.4027]
[1726215802830,2.23204079,2348.6,2348.5,0.42578]
[1726215807328,4.32014962,2348.7,2348.6,0.42576]
[1726215809232,1.53,2348.7,2348.6,0.42576]
[1726215809432,4.31920297,2348.7,2348.6,0.42576]
[1726215811732,2.78920297,2348.8,2348.7,0.42574]
[1726215812032,2.23092141,2348.8,2348.7,6.2279]
[1726215812240,2.78920297,2349.0,2348.9,0.4257]
[1726215813428,2.78920297,2349.0,2348.9,4.6833]
[1726215813632,2.78920297,2349.0,2348.9,0.4257]
[1726215813832,4.31920297,2349.0,2348.9,0.4257]
[1726215817838,1.53,2349.0,2348.8,0.3947]
[1726215818150,1.53,2349.0,2348.8,0.82041]
[1726215818151,4.31924321,2348.9,2348.8,0.82041]
[1726215818343,1.9557,2348.9,2348.8,0.82042]
[1726215818533,1.9557,2348.9,2348.7,0.42573]
[1726215818842,4.71570678,2348.8,2348.7,0.42573]
[1726215819034,1.9263,2348.8,2348.7,0.42573]
[1726215820440,6.1839,2348.8,2348.4,0.80189]
[1726215820639,0.82203,2348.8,2348.6,0.3721]
[1726215820945,4.31945023,2348.7,2348.6,0.3721]
[1726215821140,4.31950235,2348.7,2348.6,0.3721]
[1726215825236,1.53,2348.7,2348.6,0.3721]
[1726215825544,4.31896879,2348.7,2348.6,0.3721]
[1726215827750,4.31896879,2348.7,2348.6,0.79786]
[1726215828247,4.31896879,2348.7,2348.6,0.3721]
[1726215828553,4.31896879,2348.7,2348.6,0.79786]
[1726215828845,4.31896879,2348.7,2348.6,0.3721]
[1726215828846,4.71386879,2348.7,2348.6,0.3721]
[1726215829058,4.71386879,2348.7,2348.6,0.79786]
[1726215829444,4.31896879,2348.7,2348.6,0.79786]
[1726215833257,4.70726879,2348.7,2348.6,0.79786]
[1726215834255,5.13300879,2348.7,2348.6,0.79786]
[1726215835259,4.70726879,2348.7,2348.6,0.79786]
[1726215835651,5.13300879,2348.7,2348.6,0.79786]
[1726215835955,4.70726879,2348.7,2348.6,0.79786]
[1726215836747,2.78896879,2348.8,2348.7,0.42574]
[1726215836950,0.4056,2348.9,2348.8,0.42572]
[1726215836951,2.78896879,2348.9,2348.8,0.42572]
[1726215837158,2.78882842,2348.9,2348.8,0.3885]
[1726215837350,2.78882842,2348.9,2348.8,5.07182]
[1726215837847,2.78882842,2348.9,2348.8,0.81422]
[1726215840669,2.78882842,2349.0,2348.9,0.4257]
[1726215840859,2.36477,2349.1,2349.0,0.80839]
[1726215841060,1.9391,2349.1,2349.0,0.80839]
[1726215841566,2.36477,2349.1,2349.0,0.80839]
[1726215841862,1.9391,2349.1,2349.0,0.80839]
[1726215842261,2.36478,2349.1,2348.6,4.27216]
[1726215842452,0.4091,2349.1,2349.0,0.42569]
[1726215842658,1.9391,2349.1,2349.0,0.42569]
[1726215843365,2.36477,2349.1,2349.0,0.42569]
[1726215844057,1.9391,2349.1,2349.0,0.42569]
[1726215844256,2.36477,2349.1,2349.0,0.42569]
[1726215844553,0.42569,2349.0,2348.9,0.4257]
[1726215844758,1.53,2349.0,2348.9,0.4257]
[1726215845160,1.95569,2349.0,2348.9,0.4257]
[1726215845459,1.9557,2349.0,2348.8,0.42572]
[1726215845661,3.16404185,2348.9,2348.8,0.42572]
[1726215845861,0.8,2348.9,2348.8,0.42572]
[1726215846662,0.42573,2348.8,2348.6,0.4074]
[1726215846965,3.18969404,2348.7,2348.6,0.83316]
[1726215851369,0.3997,2348.7,2348.6,0.83316]
[1726215855071,3.18969404,2348.7,2348.6,0.83316]
[1726215855267,0.3997,2348.7,2348.6,0.83316]
[1726215855680,3.18969404,2348.7,2348.6,0.83316]
[1726215858167,0.3997,2348.7,2348.6,0.83316]
[1726215858368,3.18969404,2348.7,2348.6,0.83316]
[1726215861675,0.3997,2348.7,2348.6,0.83316]
[1726215861980,3.18969404,2348.7,2348.6,0.83316]
[1726215864974,2.78999404,2348.7,2348.6,7.21958]
[1726215865170,1.67464312,2348.7,2348.6,16.30824505]
[1726215865366,0.14183183,2348.7,2348.6,17.55681789]
[1726215865677,1.67464312,2348.9,2348.8,2.55436]
[1726215865981,1.67464312,2348.9,2348.8,14.8508388]
[1726215866172,1.67464312,2348.9,2348.8,17.54976]
[1726215866473,1.67464312,2348.9,2348.8,17.93106]
[1726215868275,1.67464312,2349.0,2348.9,1.48997]
[1726215868479,1.67464312,2349.0,2348.9,3.01997]
[1726215868681,1.67464312,2349.0,2348.9,7.66367]
[1726215875084,1.67464312,2349.0,2348.9,3.40607]
[1726215875287,1.67464312,2349.0,2348.9,6.61387]
[1726215877987,1.67464312,2349.0,2348.9,3.40607]
[1726215878189,0.3865,2349.1,2349.0,1.48991]
[1726215878190,2.06114312,2349.1,2349.0,1.48991]
[1726215878388,0.3865,2349.1,2349.0,1.48991]
[1726215879687,0.3865,2349.1,2349.0,4.69771]
[1726215880485,0.3865,2349.1,2349.0,1.48991]
[1726215880883,0.3865,2349.1,2349.0,4.69771]
[1726215882287,0.3865,2349.1,2349.0,3.63349]
[1726215888291,2.61955407,2349.1,2349.0,0.42569]
[1726215888589,2.61955407,2349.1,2348.7,3.2078]
[1726215888590,0.42569,2349.0,2348.7,3.2078]
[1726215888798,2.05942342,2348.9,2348.8,0.42572]
[1726215890296,0.3872,2348.9,2348.8,0.42572]
[1726215893987,2.05965712,2348.9,2348.8,0.42572]
[1726215894194,0.3872,2348.9,2348.8,0.42572]
[1726215897299,2.62025407,2348.9,2348.8,0.42572]
[1726215902102,0.3872,2348.9,2348.8,0.42572]
[1726215902306,2.62025407,2348.9,2348.8,0.42572]
[1726215903310,2.23305407,2348.9,2348.8,0.42572]
[1726215903504,2.63075407,2349.0,2348.9,0.4257]
[1726215904112,0.3977,2349.0,2348.9,0.4257]
[1726215905820,3.18769404,2349.0,2348.9,0.4257]
[1726215907406,3.61338404,2349.0,2348.9,0.4257]
[1726215907609,3.18769404,2349.0,2348.9,0.4257]
[1726215907804,0.3977,2349.0,2348.9,0.4257]
[1726215909111,0.3977,2349.0,2348.9,0.8105]
[1726215911314,3.18901461,2349.0,2348.9,0.8105]
[1726215911618,0.3977,2349.0,2348.9,0.8105]
[1726215912220,3.18896697,2349.0,2348.9,0.8105]
[1726215917327,0.3977,2349.0,2348.9,0.8105]
[1726215917629,3.18912725,2349.0,2348.9,0.8105]
[1726215918018,0.3977,2349.0,2348.9,0.8105]
[1726215921330,0.82339,2349.0,2348.9,0.8105]
[1726215921825,0.3977,2349.0,2348.9,0.8105]
[1726215922023,0.3977,2349.0,2348.7,3.2078]
[1726215922223,0.83582,2348.9,2348.8,0.42571]
[1726215922425,0.4101,2348.9,2348.8,0.42571]
[1726215927022,3.34704356,2349.1,2349.0,0.42569]
[1726215927225,3.34704356,2349.1,2349.0,6.22771]
[1726215927428,7.25192772,2349.2,2349.1,0.42567]
[1726215927631,3.34704356,2349.2,2349.1,1.22837]
[1726215927822,3.34704356,2349.2,2349.1,1.61837]
[1726215932236,3.34704356,2349.2,2349.1,1.21857]
[1726215932435,4.12974356,2349.2,2349.1,1.21857]
[1726215933922,4.12974356,2349.2,2349.1,0.42567]
[1726215934525,4.12974356,2349.2,2349.0,3.2078]
[1726215934526,0.42567,2349.1,2349.0,3.2078]
[1726215934727,0.3912,2349.1,2349.0,3.2078]
[1726215934929,0.3912,2349.1,2349.0,3.63349]
[1726215935131,4.648,2349.1,2349.0,3.63349]
[1726215935827,5.07367,2349.1,2349.0,3.63349]
[1726215936637,0.42569,2349.0,2348.9,0.42569]
[1726215936830,1.95569,2349.0,2348.9,0.42569]
[1726215937136,6.21329,2349.0,2348.9,0.42569]
[1726215937841,5.7876,2349.0,2348.7,0.3813]
[1726215938031,0.42571,2348.9,2348.8,0.42572]
[1726215938536,4.68331,2348.9,2348.8,0.42572]
[1726215940037,4.2576,2348.9,2348.8,0.42572]
[1726215940638,0.4257,2349.0,2348.9,0.4257]
[1726215940836,4.6833,2349.0,2348.9,0.4257]
[1726215943445,0.42571,2348.9,2348.8,0.42572]
[1726215943739,1.9557,2349.0,2348.9,0.4257]
[1726215944146,6.2133,2349.0,2348.9,0.4257]
[1726215946040,5.7876,2349.0,2348.9,0.4257]
[1726215946238,6.21329,2349.0,2348.9,0.4257]
[1726215946437,5.7876,2349.0,2348.9,0.4257]
[1726215947444,6.21329,2349.0,2348.9,0.4257]
[1726215951237,11.7876,2349.0,2348.5,0.3913]
[1726215951547,2.79145745,2348.6,2348.5,0.81708]
[1726215951843,0.42575,2348.7,2348.6,0.42576]
[1726215952035,1.95575,2348.7,2348.6,0.42576]
[1726215952237,5.7876,2348.7,2348.5,0.42578]
[1726215952433,4.7378,2348.6,2348.4,0.81298]
[1726215952633,3.16259988,2348.5,2348.4,0.42578]
[1726215952835,3.53959988,2348.5,2348.4,0.42578]
[1726215953044,7.79799988,2348.5,2348.4,0.42578]
[1726215954039,5.0068,2348.5,2348.4,0.42578]
[1726215954444,5.43258,2348.5,2348.1,0.3872]
[1726215954645,2.23178362,2348.3,2348.2,0.42583]
[1726215958346,0.42583,2348.2,2348.1,0.81305]
[1726215958557,3.61366493,2348.2,2348.1,0.81305]
[1726215958946,2.08366493,2348.2,2348.1,0.81305]
[1726215960957,4.18759362,2348.3,2348.2,0.42583]
[1726215960958,1.67236493,2348.3,2348.2,0.42583]
[1726215961249,1.67236493,2348.4,2348.3,0.42581]
[1726215961448,2.23178362,2348.5,2348.3,0.42581]
[1726215961449,1.67236493,2348.6,2348.4,0.4258]
[1726215961654,1.67236493,2348.6,2348.5,7.00703]
[1726215961858,1.67236493,2348.7,2348.6,2.55458]
[1726215962042,1.67236493,2348.9,2348.8,0.42572]
[1726215962247,1.67236493,2348.9,2348.8,6.22784]
[1726215962445,1.67137778,2349.0,2348.8,10.05972]
[1726215962653,1.67137778,2349.0,2348.9,5.0678]
[1726215962844,1.67137778,2349.1,2349.0,0.42569]
[1726215963048,1.67137778,2349.1,2349.0,2.35839]
[1726215963251,2.23178362,2349.2,2349.1,0.42567]
[1726215964551,4.31972953,2349.3,2349.1,0.42567]
[1726215964945,2.78972953,2349.2,2349.1,0.42567]
[1726215969157,4.31972953,2349.3,2349.2,0.42565]
[1726215971854,4.31536116,2349.3,2349.2,0.42565]
[1726215972061,4.31536125,2349.3,2349.2,0.42565]
[1726215972258,4.31540848,2349.3,2349.2,0.42565]
[1726215972555,4.3154099,2349.3,2349.2,0.42565]
[1726215972760,1.53,2349.3,2349.2,0.42565]
[1726215972958,4.31539494,2349.3,2349.2,0.42565]
[1726215973256,1.95563,2349.3,2349.2,0.42565]
[1726215973559,1.53,2349.3,2349.2,0.42565]
[1726215975162,2.78548723,2349.3,2349.2,0.42565]
[1726215976757,3.21111723,2349.3,2349.2,0.42565]
[1726215976954,2.78548723,2349.3,2349.2,0.42565]
[1726215977560,4.31548723,2349.3,2349.2,0.42565]
[1726215978456,1.53,2349.3,2349.2,0.42565]
[1726215979760,0.42562,2349.4,2349.1,0.3992]
[1726215979761,1.53,2349.4,2349.3,0.42563]
[1726215979964,1.95561,2349.4,2349.3,0.42563]
[1726215981064,0.42561,2349.4,2349.3,0.42563]
[1726215981264,4.7378,2349.5,2349.3,0.42563]
[1726215981453,0.42561,2349.4,2349.3,0.42563]
[1726215982968,8.51045356,2349.5,2349.3,0.42563]
[1726215983165,4.27181,2349.5,2349.1,0.3992]
[1726215983465,3.21131606,2349.2,2349.1,0.82486]
[1726215984259,4.74131606,2349.2,2348.7,2.59435]
[1726215984459,3.36762778,2349.1,2349.0,0.42567]
[1726215984866,1.1391,2349.1,2349.0,0.42567]
[1726215985670,0.3877,2349.1,2349.0,0.42567]
[1726215985871,2.61624296,2349.1,2349.0,0.42567]
[1726215986063,0.3877,2349.1,2349.0,0.42567]
[1726215988267,2.61613988,2349.1,2349.0,0.42567]
[1726215988571,0.3877,2349.1,2349.0,0.42567]
[1726215989073,2.61619316,2349.1,2349.0,0.42567]
[1726215990271,2.61603571,2349.1,2349.0,0.42567]
[1726215990462,0.3877,2349.1,2349.0,0.42567]
[1726215990965,0.3877,2349.1,2348.8,1.9349]
[1726215990966,2.34337,2349.1,2348.8,0.4049]
[1726215991170,1.67133794,2348.9,2348.8,0.83062]
[1726215991368,2.62625059,2349.0,2348.9,0.4257]
[1726215994172,3.05195059,2349.0,2348.8,0.4049]
[1726215994385,3.05195059,2349.0,2348.8,0.83061]
[1726215994386,4.13963471,2348.9,2348.8,0.83061]
[1726215994592,1.911,2348.9,2348.8,0.83061]
[1726215995281,4.13962097,2348.9,2348.8,0.83061]
[1726215995482,2.60962097,2348.9,2348.8,0.83061]
[1726215995681,0.381,2348.9,2348.8,0.83061]
[1726215996290,2.60961851,2348.9,2348.8,0.83061]
[1726215997895,2.60960473,2348.9,2348.8,0.83061]
[1726215998497,2.60974373,2348.9,2348.8,0.83061]
[1726215999399,0.381,2348.9,2348.8,0.83061]
[1726216000301,3.16666606,2348.9,2348.8,0.83061]
[1726216004393,3.17043002,2348.9,2348.8,0.83061]
[1726216004796,0.381,2348.9,2348.8,0.83061]
[1726216015710,2.79056524,2348.9,2348.8,7.68253]
[1726216016007,2.2322957,2348.9,2348.8,7.66302]
[1726216016214,2.2322957,2348.9,2348.8,8.08874]
[1726216016409,2.2322957,2348.9,2348.8,3.83114]
[1726216016603,2.2322957,2348.9,2348.8,8.08874]
[1726216017515,2.2322957,2348.9,2348.8,3.83114]
[1726216018205,2.79056524,2349.0,2348.9,0.4257]
[1726216019909,0.7843,2349.1,2349.0,0.42569]
[1726216020619,0.7843,2349.1,2348.8,0.8111]
[1726216020915,0.7843,2349.1,2348.8,0.83062]
[1726216020916,2.7905867,2348.9,2348.8,0.83062]
[1726216022710,1.9557,2348.9,2348.8,0.4049]
[1726216022908,1.95572,2348.9,2348.4,1.11046339]
[1726216023116,3.19596275,2348.8,2348.6,0.42576]
[1726216023317,2.79106275,2348.7,2348.6,0.42576]
[1726216023512,0.4049,2348.8,2348.7,0.42574]
[1726216023513,3.19596275,2348.8,2348.7,0.42574]
[1726216025517,0.4049,2348.8,2348.7,0.42574]
[1726216026017,1.9349,2348.8,2348.7,0.42574]
[1726216028121,2.36062,2348.8,2348.7,0.42574]
[1726216028311,1.9349,2348.8,2348.7,0.42574]
[1726216030528,2.36062,2348.8,2348.7,0.42574]
[1726216031018,1.9349,2348.8,2348.6,0.42576]
[1726216031224,1.9412,2348.7,2348.6,0.42576]
[1726216031611,0.42576,2348.6,2348.5,0.371]
[1726216031822,0.80926,2348.6,2348.4,0.42578]
[1726216032019,4.71065504,2348.5,2348.4,0.42578]
[1726216032214,1.9184,2348.5,2348.4,0.42578]
[1726216032420,4.71031744,2348.5,2348.4,0.42578]
[1726216032617,5.13609744,2348.5,2348.4,0.42578]
[1726216032821,2.34418,2348.5,2348.4,0.42578]
[1726216033121,2.34418,2348.5,2348.3,0.79991]
[1726216033122,0.4258,2348.4,2348.3,0.79991]
[1726216033314,3.21775529,2348.4,2348.3,0.79991]
[1726216035622,2.79195529,2348.4,2348.3,0.79991]
[1726216037619,3.21775529,2348.4,2348.3,0.79991]
[1726216038424,2.79195529,2348.4,2348.3,0.79991]
[1726216039825,0.3884,2348.5,2348.4,0.4258]
[1726216040229,1.9184,2348.5,2348.4,0.4258]
[1726216040425,4.70702487,2348.5,2348.4,0.4258]
[1726216040929,1.9184,2348.5,2348.4,0.4258]
[1726216042134,4.706676,2348.5,2348.4,0.4258]
[1726216043523,1.9184,2348.5,2348.4,0.4258]
[1726216043719,3.171776,2348.6,2348.3,1.43863]
[1726216043921,0.4112,2348.7,2348.6,0.42576]
[1726216043922,2.788276,2348.7,2348.6,0.42576]
[1726216044126,2.22997423,2348.9,2348.7,1.06436]
[1726216044326,2.22997423,2348.9,2348.8,4.7378]
[1726216044327,1.67195163,2348.9,2348.8,4.7378]
[1726216044623,1.67195163,2348.9,2348.8,9.42112]
[1726216045427,1.67195163,2348.9,2348.8,5.16352]
[1726216047826,1.67195163,2348.9,2348.8,0.42572]
[1726216048137,2.61027423,2349.0,2348.9,0.4257]
[1726216048432,0.789,2349.0,2348.9,0.4257]